bitfinex/quotes_BTCUSD_20251001
["timestamp","ask_amount","ask_price","bid_price","bid_amount"]
[1759289127982,0.18061196,114500.0,114490.0,4.25314183]
[1759289128221,0.18061196,114500.0,114490.0,4.73820673]
[1759289128422,0.18061196,114500.0,114490.0,4.21965899]
[1759289128625,0.18061196,114500.0,114490.0,4.53063409]
[1759289129265,0.18061196,114500.0,114490.0,4.56169899]
[1759289129841,0.18061196,114500.0,114490.0,4.56157899]
[1759289133610,0.18061196,114500.0,114490.0,4.73626673]
[1759289133817,0.18061196,114500.0,114490.0,4.56157899]
[1759289134812,0.18061196,114500.0,114490.0,4.22157899]
[1759289135433,0.18061196,114500.0,114490.0,4.39626673]
[1759289135647,0.17521196,114500.0,114490.0,4.39828673]
[1759289136664,0.00053948,114500.0,114490.0,4.39828673]
[1759289136849,0.17521196,114500.0,114490.0,4.39828673]
[1759289137880,0.17736196,114500.0,114490.0,4.73828673]
[1759289138267,0.18553271,114500.0,114490.0,4.73828673]
[1759289138472,0.18553271,114500.0,114490.0,4.56359899]
[1759289138661,0.00871023,114500.0,114490.0,4.73828673]
[1759289138798,0.00871023,114500.0,114490.0,4.7568199]
[1759289138799,0.00053948,114500.0,114490.0,4.7568199]
[1759289140322,0.00268948,114500.0,114490.0,3.50901216]
[1759289140529,0.18878565,114500.0,114490.0,4.56151423]
[1759289140749,0.18878565,114500.0,114490.0,4.73822197]
[1759289140750,0.00871317,114500.0,114490.0,4.73822197]
[1759289140930,0.18338565,114500.0,114490.0,4.73822197]
[1759289141106,0.18338565,114500.0,114490.0,4.70968183]
[1759289141313,0.18338565,114500.0,114490.0,4.7564999]
[1759289141520,0.00053948,114500.0,114490.0,4.7564999]
[1759289144802,0.00053948,114500.0,114490.0,4.70968183]
[1759289152013,0.00053948,114500.0,114490.0,4.61844183]
[1759289152222,0.00053948,114500.0,114490.0,4.70920183]
[1759289153839,0.00053948,114500.0,114490.0,3.46219409]
[1759289153840,0.18030196,114500.0,114490.0,3.46219409]
[1759289154045,0.18030196,114500.0,114490.0,4.52971409]
[1759289154254,0.18030196,114500.0,114490.0,4.70440183]
[1759289154684,0.00053948,114500.0,114490.0,4.70648183]
[1759289156138,0.17521196,114500.0,114490.0,4.70648183]
[1759289158279,0.17735196,114500.0,114490.0,4.70648183]
[1759289159640,0.18030196,114500.0,114490.0,4.70648183]
[1759289160620,0.18030196,114500.0,114490.0,4.52947409]
[1759289162662,0.18030196,114500.0,114490.0,4.70624183]
[1759289163156,0.18030196,114500.0,114490.0,4.53155409]
[1759289163951,0.18030196,114500.0,114490.0,4.52947409]
[1759289164152,0.18030196,114500.0,114490.0,4.53155409]
[1759289164958,0.18030196,114500.0,114490.0,4.70624183]
[1759289165166,0.17735196,114500.0,114490.0,4.70624183]
[1759289165370,0.00267948,114500.0,114490.0,4.70624183]
[1759289165583,0.17521196,114500.0,114490.0,4.7718971]
[1759289165906,0.00053948,114500.0,114490.0,4.7718971]
[1759289166107,0.00053948,114500.0,114490.0,4.7691171]
[1759289166617,0.00053948,114500.0,114490.0,4.7718971]
[1759289168112,0.00053948,114500.0,114490.0,4.50179183]
[1759289169656,0.00053948,114500.0,114490.0,4.53116667]
[1759289172555,0.00053948,114500.0,114490.0,4.43676874]
[1759289178160,0.00053948,114500.0,114490.0,4.49964401]
[1759289179378,0.00053948,114500.0,114490.0,4.52874162]
[1759289180504,0.00053948,114500.0,114490.0,4.59434779]
[1759289181606,0.00551948,114500.0,114490.0,3.52428779]
[1759289181809,0.00551948,114500.0,114490.0,4.59136779]
[1759289181998,0.00551948,114500.0,114490.0,4.13536779]
[1759289182205,0.00551948,114500.0,114490.0,4.58928779]
[1759289183078,0.00551948,114500.0,114490.0,3.52220779]
[1759289183275,0.00551948,114500.0,114490.0,4.49852779]
[1759289183486,0.18019196,114500.0,114490.0,4.58932779]
[1759289183679,0.00551948,114500.0,114490.0,4.49856779]
[1759289183887,0.00551948,114500.0,114490.0,4.58932779]
[1759289185778,0.00551948,114500.0,114490.0,4.59135779]
[1759289185977,0.00249948,114500.0,114490.0,4.59135779]
[1759289186199,0.00053948,114500.0,114490.0,4.59135779]
[1759289188791,0.00249948,114500.0,114490.0,4.59135779]
[1759289189398,0.00551948,114500.0,114490.0,4.59135779]
[1759289189547,0.00551948,114500.0,114490.0,4.13739779]
[1759289189749,0.00551948,114500.0,114490.0,4.59131779]
[1759289192326,0.00249948,114500.0,114490.0,4.59131779]
[1759289192730,0.00551948,114500.0,114490.0,4.59131779]
[1759289193530,0.00551948,114500.0,114490.0,3.52220779]
[1759289193671,0.00551948,114500.0,114490.0,4.58924779]
[1759289196400,0.00551948,114500.0,114490.0,4.36725649]
[1759289196624,0.00249948,114500.0,114490.0,4.36928649]
[1759289196824,0.02550948,114500.0,114490.0,4.36928649]
[1759289197249,0.02852948,114500.0,114490.0,4.36928649]
[1759289198031,0.20320196,114500.0,114490.0,4.36725649]
[1759289198580,0.02852948,114500.0,114490.0,4.36725649]
[1759289198794,0.02852948,114500.0,114490.0,4.39071649]
[1759289199300,0.02852948,114500.0,114490.0,4.39274649]
[1759289199444,0.20320196,114500.0,114490.0,4.39071649]
[1759289199796,0.02852948,114500.0,114490.0,4.39071649]
[1759289200003,0.02354948,114500.0,114490.0,4.39274649]
[1759289200295,0.02550948,114500.0,114490.0,4.39274649]
[1759289200598,0.02852948,114500.0,114490.0,4.39071649]
[1759289201017,0.20320196,114500.0,114490.0,4.39071649]
[1759289206425,0.20320196,114500.0,114490.0,4.45359176]
[1759289208206,0.20320196,114500.0,114490.0,3.21186402]
[1759289208412,0.20320196,114500.0,114490.0,4.45351176]
[1759289219408,0.20320196,114500.0,114490.0,4.27882402]
[1759289219604,0.20320196,114500.0,114490.0,4.45351176]
[1759289221473,0.20320196,114500.0,114490.0,3.38655176]
[1759289221679,0.20320196,114500.0,114490.0,4.45347176]
[1759289222100,0.20320196,114500.0,114490.0,3.38655176]
[1759289222306,0.20320196,114500.0,114490.0,4.45347176]
[1759289223486,0.20320196,114500.0,114490.0,3.38655176]
[1759289223669,0.20320196,114500.0,114490.0,4.45347176]
[1759289224648,0.20320196,114500.0,114490.0,4.45546176]
[1759289225021,0.20320196,114500.0,114490.0,4.45347176]
[1759289225472,0.20320196,114500.0,114490.0,3.38655176]
[1759289225674,0.20320196,114500.0,114490.0,4.27874402]
[1759289226118,0.20320196,114500.0,114490.0,4.45343176]
[1759289226522,0.20320196,114500.0,114490.0,4.11621652]
[1759289226701,0.20320196,114500.0,114490.0,3.04933652]
[1759289226946,0.20320196,114500.0,114490.0,4.11621652]
[1759289227332,0.20249077,114500.0,114490.0,3.66233652]
[1759289227513,0.20249077,114500.0,114490.0,4.11621652]
[1759289227716,0.20249077,114500.0,114490.0,3.94152878]
[1759289228319,0.20249077,114500.0,114490.0,4.11621652]
[1759289228557,0.20249077,114500.0,114490.0,3.38933652]
[1759289228767,0.20249077,114500.0,114490.0,4.45621652]
[1759289228971,0.20249077,114500.0,114490.0,3.38933652]
[1759289229111,0.20249077,114500.0,114490.0,4.28152878]
[1759289230328,0.22869753,114500.0,114490.0,4.28351878]
[1759289230768,0.22869753,114500.0,114490.0,3.26167897]
[1759289230930,0.22869753,114500.0,114490.0,4.32863897]
[1759289233945,0.22869753,114500.0,114490.0,3.26167897]
[1759289234159,0.22869753,114500.0,114490.0,4.28160878]
[1759289234557,0.22869753,114500.0,114490.0,4.31295192]
[1759289236412,0.22869753,114500.0,114490.0,4.32863897]
[1759289239096,0.23369753,114500.0,114490.0,4.34063897]
[1759289239582,0.23369753,114500.0,114490.0,1.74755397]
[1759289239782,0.323083,114500.0,114490.0,1.4320678]
[1759289239985,0.323083,114500.0,114490.0,1.32620763]
[1759289241412,0.323083,114500.0,114490.0,1.29487761]
[1759289245924,0.323083,114500.0,114490.0,0.19886]
[1759289246132,0.323083,114500.0,114490.0,1.2659]
[1759289246346,0.33124964,114500.0,114490.0,0.19886]
[1759289246756,0.33125013,114500.0,114490.0,1.20626]
[1759289248118,0.36140203,114500.0,114490.0,1.20626]
[1759289248326,0.36140203,114500.0,114490.0,0.19886]
[1759289248500,0.36140203,114500.0,114490.0,1.2659]
[1759289248704,0.17473353,114460.0,114450.0,0.39915109]
[1759289249081,0.17967353,114460.0,114450.0,3.0360059]
[1759289249253,0.20334353,114460.0,114450.0,3.0360059]
[1759289249463,0.22956071,114460.0,114450.0,2.9452059]
[1759289249662,0.22956071,114460.0,114450.0,3.0360059]
[1759289249815,0.22956071,114460.0,114450.0,2.96351493]
[1759289250050,0.22956071,114460.0,114450.0,3.27786989]
[1759289250916,0.22956071,114460.0,114450.0,2.99870508]
[1759289252169,0.22956071,114460.0,114450.0,3.02390043]
[1759289253296,0.22956071,114460.0,114450.0,2.79608043]
[1759289254713,0.22661071,114460.0,114450.0,2.97290922]
[1759289255138,0.22956071,114460.0,114450.0,2.97082922]
[1759289255542,0.22956071,114460.0,114450.0,2.79608043]
[1759289255743,0.22956071,114460.0,114450.0,2.45544043]
[1759289255962,0.22956071,114460.0,114450.0,2.79608043]
[1759289256522,0.22462071,114460.0,114450.0,2.79816043]
[1759289256755,0.22661071,114460.0,114450.0,2.79816043]
[1759289256960,0.22956071,114460.0,114450.0,2.79816043]
[1759289257286,0.22956071,114460.0,114450.0,3.68808043]
[1759289258057,0.22661071,114460.0,114450.0,3.521273]
[1759289258262,0.22462071,114460.0,114450.0,3.54640385]
[1759289258824,0.22661071,114460.0,114450.0,3.521273]
[1759289259032,0.22956071,114460.0,114450.0,3.521273]
[1759289259198,0.22956071,114460.0,114450.0,3.519193]
[1759289260636,0.22956071,114460.0,114450.0,3.58626392]
[1759289262641,0.22956071,114460.0,114450.0,3.62099759]
[1759289266559,0.22956071,114460.0,114450.0,3.16699759]
[1759289266764,0.22956071,114460.0,114450.0,3.62107759]
[1759289268174,0.22956071,114460.0,114450.0,3.66810778]
[1759289269104,0.22956071,114460.0,114450.0,3.67018778]
[1759289269340,0.22956071,114460.0,114450.0,3.66810778]
[1759289269753,0.22661071,114460.0,114450.0,3.67018778]
[1759289270155,0.22956071,114460.0,114450.0,3.66810778]
[1759289270895,0.22956071,114460.0,114450.0,3.66806778]
[1759289272200,0.22462071,114460.0,114450.0,3.67007778]
[1759289272544,0.22662071,114460.0,114450.0,3.67007778]
[1759289272746,0.22976071,114460.0,114450.0,3.67007778]
[1759289272953,0.22976071,114460.0,114450.0,3.66806778]
[1759289274200,0.22976071,114460.0,114450.0,3.67007778]
[1759289274407,0.22976071,114460.0,114450.0,3.66806778]
[1759289275018,0.22662071,114460.0,114450.0,3.67007778]
[1759289275367,0.22976071,114460.0,114450.0,3.66806778]
[1759289275541,0.22976071,114460.0,114450.0,3.62103759]
[1759289276477,0.22976071,114460.0,114450.0,3.16695759]
[1759289276663,0.22976071,114460.0,114450.0,3.21336667]
[1759289276884,0.22976071,114460.0,114450.0,3.60103173]
[1759289279963,0.31914618,114460.0,114450.0,2.53387173]
[1759289280095,0.31914618,114460.0,114450.0,3.60099173]
[1759289280430,0.31914618,114460.0,114450.0,1.26529367]
[1759289281219,0.31914618,114460.0,114450.0,0.56145367]
[1759289281423,0.31914618,114460.0,114450.0,1.26529367]
[1759289282432,0.31914618,114460.0,114450.0,1.23056]
[1759289284884,0.31914618,114460.0,114450.0,0.16344]
[1759289285202,0.31914618,114460.0,114450.0,1.23064]
[1759289285424,0.31914618,114460.0,114450.0,0.16344]
[1759289285704,0.17477934,114430.0,114420.0,0.11152806]
[1759289286008,0.17991934,114430.0,114420.0,2.49110054]
[1759289286212,0.20445934,114430.0,114420.0,2.49110054]
[1759289286417,0.23068303,114430.0,114420.0,2.49110054]
[1759289286802,0.23068303,114430.0,114420.0,2.74086054]
[1759289287224,0.23068303,114430.0,114420.0,3.63098054]
[1759289287682,0.23068303,114430.0,114420.0,3.5839778]
[1759289288678,0.23068303,114430.0,114420.0,3.61909968]
[1759289289050,0.23068303,114430.0,114420.0,2.55189968]
[1759289289276,0.23068303,114430.0,114420.0,3.61909968]
[1759289290338,0.20445934,114430.0,114420.0,3.61909968]
[1759289294715,0.20445934,114430.0,114420.0,3.55457436]
[1759289294927,0.29384481,114430.0,114420.0,1.01630136]
[1759289295125,0.29384481,114430.0,114420.0,1.26610136]
[1759289295341,0.32007343,114430.0,114420.0,1.26610136]
[1759289299233,0.32007343,114430.0,114420.0,1.17522136]
[1759289299436,0.32007343,114430.0,114420.0,1.26606136]
[1759289301138,0.32007343,114430.0,114420.0,0.19874136]
[1759289301344,0.32007343,114430.0,114420.0,1.23101948]
[1759289302397,0.32007343,114430.0,114420.0,0.16361948]
[1759289302552,0.32007343,114430.0,114420.0,1.23105948]
[1759289304247,0.33638176,114430.0,114420.0,1.23105948]
[1759289305701,0.33638176,114430.0,114420.0,0.16361948]
[1759289305911,0.33638176,114430.0,114420.0,1.23113948]
[1759289306685,0.17479461,114420.0,114400.0,0.00305]
[1759289306819,0.17484045,114390.0,114380.0,0.18549166]
[1759289307019,0.18013045,114390.0,114380.0,2.95477882]
[1759289307291,0.20358045,114390.0,114380.0,3.48173882]
[1759289307945,0.20358045,114390.0,114380.0,3.40878273]
[1759289308262,0.20358045,114390.0,114380.0,3.44365815]
[1759289308589,0.20044045,114390.0,114380.0,3.44574815]
[1759289309569,0.20358045,114390.0,114380.0,3.37804791]
[1759289310898,0.20358045,114390.0,114380.0,1.01625491]
[1759289311102,0.22981625,114390.0,114380.0,1.26637491]
[1759289313898,0.31920172,114390.0,114380.0,1.26637491]
[1759289317749,0.0469058,114390.0,114380.0,3.8515316]
[1759289317880,0.02067,114390.0,114380.0,4.01614872]
[1759289318127,0.02067,114390.0,114380.0,3.62474399]
[1759289318347,0.02067,114390.0,114380.0,3.57590629]
[1759289322134,0.20099335,114440.0,114430.0,0.17477934]
[1759289322353,0.18667089,114450.0,114440.0,0.5]
[1759289322554,0.27820636,114450.0,114440.0,2.539913]
[1759289322712,0.27820636,114450.0,114440.0,0.25128]
[1759289323328,0.20102567,114460.0,114440.0,0.42604406]
[1759289323530,0.29041114,114460.0,114440.0,2.71467706]
[1759289323713,0.29041114,114460.0,114450.0,2.288633]
[1759289323913,0.29355114,114460.0,114450.0,2.288633]
[1759289324164,0.29570114,114460.0,114450.0,2.288633]
[1759289324315,0.31915114,114460.0,114450.0,2.288633]
[1759289325080,0.31915114,114460.0,114450.0,2.32379025]
[1759289325281,0.31915114,114460.0,114450.0,0.03515725]
[1759289325666,0.17474879,114450.0,114440.0,0.51479862]
[1759289325816,0.17474879,114450.0,114440.0,2.60575756]
[1759289326031,0.19819879,114450.0,114440.0,2.78052162]
[1759289326655,0.02345,114450.0,114440.0,2.78052162]
[1759289327331,0.02345,114450.0,114440.0,3.76176162]
[1759289329091,0.02345,114450.0,114440.0,3.06836569]
[1759289329439,0.02345,114450.0,114440.0,4.13700569]
[1759289332165,0.02345,114450.0,114440.0,3.68260569]
[1759289332428,0.02345,114450.0,114440.0,4.13684569]
[1759289332999,0.02345,114450.0,114440.0,3.06836569]
[1759289333357,0.02345,114450.0,114440.0,4.04592569]
[1759289333528,0.02345,114450.0,114440.0,4.13676569]
[1759289333752,0.02345,114450.0,114440.0,3.06836569]
[1759289334127,0.02345,114450.0,114440.0,4.13672569]
[1759289336219,0.02345,114450.0,114440.0,3.06836569]
[1759289336430,0.02345,114450.0,114440.0,4.13668569]
[1759289337621,0.02345,114450.0,114440.0,4.03523706]
[1759289338157,0.02345,114450.0,114440.0,4.03527706]
[1759289339345,0.20330879,114450.0,114440.0,2.792153]
[1759289339554,0.20330879,114450.0,114440.0,3.860433]
[1759289339853,0.20330879,114450.0,114440.0,4.03515706]
[1759289340541,0.20034879,114450.0,114440.0,4.03515706]
[1759289341187,0.20330879,114450.0,114440.0,4.03515706]
[1759289342800,0.02856,114450.0,114440.0,4.03515706]
[1759289343022,0.20330879,114450.0,114440.0,4.03515706]
[1759289344023,0.20330879,114450.0,114440.0,2.48726455]
[1759289344286,0.20330879,114450.0,114440.0,3.55530455]
[1759289346528,0.20330879,114450.0,114440.0,3.61925492]
[1759289349894,0.02345,114450.0,114440.0,3.88340445]
[1759289350117,0.0097744,114450.0,114440.0,3.82307446]
[1759289350335,0.0097744,114450.0,114440.0,3.64826451]
[1759289350545,0.0097744,114450.0,114440.0,3.6239425]
[1759289350763,0.19136642,114500.0,114480.0,0.174703]
[1759289350973,0.18013731,114500.0,114490.0,3.05662177]
[1759289351188,0.18013731,114500.0,114490.0,2.71384074]
[1759289351406,0.18228731,114500.0,114490.0,2.561943]
[1759289351619,0.18524731,114500.0,114490.0,2.561943]
[1759289352161,0.18524731,114500.0,114490.0,2.562303]
[1759289353028,0.20869731,114500.0,114490.0,2.562303]
[1759289353733,0.20869731,114500.0,114490.0,2.311423]
[1759289353902,0.20869731,114500.0,114490.0,2.562223]
[1759289354111,0.20869731,114500.0,114490.0,2.311423]
[1759289354314,0.20869731,114500.0,114490.0,2.562223]
[1759289354751,0.20869731,114500.0,114490.0,2.62666956]
[1759289356870,0.20869731,114500.0,114490.0,2.37586956]
[1759289357080,0.20869731,114500.0,114490.0,2.62650956]
[1759289357323,0.20869731,114500.0,114490.0,3.60722956]
[1759289361011,0.20869731,114500.0,114490.0,3.33134056]
[1759289361366,0.20869731,114500.0,114490.0,1.92846239]
[1759289361578,0.17470029,114490.0,114470.0,0.18343275]
[1759289361758,0.17794029,114490.0,114480.0,2.019263]
[1759289361957,0.20370029,114490.0,114480.0,2.019263]
[1759289362572,0.20370029,114490.0,114480.0,2.270023]
[1759289362890,0.20370029,114490.0,114480.0,1.928463]
[1759289363085,0.29308576,114490.0,114480.0,1.928463]
[1759289363298,0.17471826,114470.0,114460.0,1.928463]
[1759289363509,0.18001826,114470.0,114460.0,2.270023]
[1759289363740,0.20371826,114470.0,114460.0,2.270023]
[1759289367012,0.19841826,114470.0,114460.0,2.44475653]
[1759289367218,0.19841826,114470.0,114460.0,3.33467653]
[1759289367684,0.19841826,114470.0,114460.0,3.40120423]
[1759289367918,0.19841826,114470.0,114460.0,3.33467653]
[1759289368441,0.19841826,114470.0,114460.0,3.10151353]
[1759289368620,0.19841826,114470.0,114460.0,2.92678]
[1759289369054,0.20371826,114470.0,114460.0,2.92678]
[1759289370540,0.20371826,114470.0,114460.0,2.67602]
[1759289370739,0.20371826,114470.0,114460.0,2.92658]
[1759289376815,0.20371826,114470.0,114460.0,1.85874]
[1759289377025,0.20371826,114470.0,114460.0,2.92638]
[1759289377184,0.20371826,114470.0,114460.0,2.92634]
[1759289377571,0.20371826,114470.0,114460.0,2.99023332]
[1759289381386,0.20371826,114470.0,114460.0,1.92263332]
[1759289381591,0.20371826,114470.0,114460.0,1.29481332]
[1759289382638,0.19841826,114470.0,114460.0,2.99011332]
[1759289382849,0.24135576,114470.0,114460.0,1.29481332]
[1759289383100,0.29310373,114470.0,114460.0,1.29625332]
[1759289383287,0.29310373,114470.0,114460.0,0.16344]
[1759289383474,0.29310373,114470.0,114460.0,1.23236]
[1759289383771,0.29310373,114470.0,114460.0,0.16344]
[1759289383929,0.29310373,114470.0,114460.0,1.23268]
[1759289398686,0.17474879,114450.0,114440.0,0.3487382]
[1759289398893,0.17474879,114450.0,114440.0,2.30960214]
[1759289399093,0.19862879,114450.0,114440.0,2.30960214]
[1759289399868,0.19862879,114450.0,114440.0,2.56128214]
[1759289400266,0.19862879,114450.0,114440.0,2.37778]
[1759289400462,0.19862879,114450.0,114440.0,2.55254406]
[1759289401514,0.02388,114450.0,114440.0,2.55254406]
[1759289403402,0.02388,114450.0,114440.0,2.587568]
[1759289404868,0.02388,114450.0,114440.0,2.247568]
[1759289406390,0.02388,114450.0,114440.0,2.43333008]
[1759289406626,0.02388,114450.0,114440.0,2.73021423]
[1759289407065,0.02388,114450.0,114440.0,2.66766468]
[1759289407313,0.02388,114450.0,114440.0,3.64858468]
[1759289407742,0.02388,114450.0,114440.0,3.48510468]
[1759289407947,0.02388,114450.0,114440.0,3.45008074]
[1759289408160,0.02388,114450.0,114440.0,3.35872143]
[1759289408766,0.02388,114450.0,114440.0,3.42127098]
[1759289409090,0.02388,114450.0,114440.0,2.35215098]
[1759289409291,0.02388,114450.0,114440.0,2.60367098]
[1759289411149,0.02388,114450.0,114440.0,2.26409643]
[1759289413902,0.02388,114450.0,114440.0,2.29914146]
[1759289416387,0.02388,114450.0,114440.0,2.29890146]
[1759289416600,0.02388,114450.0,114440.0,2.04762146]
[1759289416810,0.02388,114450.0,114440.0,2.36526112]
[1759289417218,0.02388,114450.0,114440.0,3.34606112]
[1759289421134,0.02388,114450.0,114440.0,3.31753067]
[1759289421334,0.02388,114450.0,114440.0,3.40833067]
[1759289422004,0.02388,114450.0,114440.0,3.31753067]
[1759289422253,0.02388,114450.0,114440.0,3.40833067]
[1759289422461,0.02388,114450.0,114440.0,3.24489067]
[1759289422633,0.02388,114450.0,114440.0,2.51841067]
[1759289422861,0.02388,114450.0,114440.0,2.42081609]
[1759289424013,0.02388,114450.0,114440.0,2.76081609]
[1759289424455,0.02388,114450.0,114440.0,2.67001609]
[1759289427218,0.02388,114450.0,114440.0,3.65073609]
[1759289430512,0.02388,114450.0,114440.0,3.81229609]
[1759289430735,0.02388,114450.0,114440.0,3.890942]
[1759289431219,0.02388,114450.0,114440.0,3.82442234]
[1759289432157,0.02388,114450.0,114440.0,3.85930996]
[1759289432908,0.02388,114450.0,114440.0,3.00714234]
[1759289435420,0.02388,114450.0,114440.0,3.03227694]
[1759289435657,0.02388,114450.0,114440.0,3.05638292]
[1759289435875,0.00334256,114450.0,114440.0,3.05638292]
[1759289436086,0.00334256,114450.0,114440.0,3.00714234]
[1759289436297,0.00334256,114450.0,114440.0,2.75622234]
[1759289436527,0.00334256,114450.0,114440.0,3.00874234]
[1759289436660,0.00334256,114450.0,114440.0,2.75622234]
[1759289436866,0.00334256,114450.0,114440.0,3.00874234]
[1759289437306,0.00334256,114450.0,114440.0,3.98946234]
[1759289437717,0.07295609,114490.0,114480.0,0.174703]
[1759289437890,0.07300257,114490.0,114480.0,2.299498]
[1759289438313,4.648e-05,114490.0,114480.0,2.299498]
[1759289438568,4.648e-05,114490.0,114480.0,2.31579196]
[1759289439814,0.02285648,114490.0,114480.0,2.31579196]
[1759289441323,0.02488648,114490.0,114480.0,2.31579196]
[1759289441532,0.02285648,114490.0,114480.0,2.31579196]
[1759289442952,0.02285648,114490.0,114480.0,2.299498]
[1759289447208,0.02285648,114490.0,114480.0,2.462938]
[1759289448255,0.02804648,114490.0,114480.0,2.462938]
[1759289448474,0.02804648,114490.0,114480.0,2.49233698]
[1759289448674,0.02285648,114490.0,114480.0,2.49233698]
[1759289449805,0.02285648,114490.0,114480.0,2.55673675]
[1759289450048,0.02488648,114490.0,114480.0,2.55673675]
[1759289450248,0.02285648,114490.0,114480.0,2.55673675]
[1759289450466,0.02285648,114490.0,114480.0,1.85021675]
[1759289450591,0.02498648,114490.0,114480.0,2.46521675]
[1759289450792,0.02285648,114490.0,114480.0,2.91921675]
[1759289452172,0.19754422,114490.0,114480.0,2.82829675]
[1759289452300,0.19754422,114490.0,114480.0,1.85021675]
[1759289452522,0.19754422,114490.0,114480.0,2.91909675]
[1759289452727,0.02819648,114490.0,114480.0,2.91909675]
[1759289452934,0.20288422,114490.0,114480.0,2.91909675]
[1759289453801,0.19754422,114490.0,114480.0,2.91909675]
[1759289453972,0.02285648,114490.0,114480.0,2.91909675]
[1759289454719,0.19754422,114490.0,114480.0,2.91909675]
[1759289454929,0.19754422,114490.0,114480.0,1.85021675]
[1759289455152,0.19754422,114490.0,114480.0,2.91897675]
[1759289455153,0.20288422,114490.0,114480.0,2.91897675]
[1759289455355,0.20288422,114490.0,114480.0,1.85021675]
[1759289455559,0.20288422,114490.0,114480.0,2.91897675]
[1759289456002,0.02285648,114490.0,114480.0,2.91897675]
[1759289457449,0.02285648,114490.0,114480.0,2.77519285]
[1759289457626,0.02285648,114490.0,114480.0,2.94989585]
[1759289458804,0.19754422,114490.0,114480.0,2.94989585]
[1759289459456,0.20288422,114490.0,114480.0,2.95009585]
[1759289459651,0.02285648,114490.0,114480.0,2.95009585]
[1759289462704,0.19754422,114490.0,114480.0,2.95009585]
[1759289462924,0.19967422,114490.0,114480.0,1.67703387]
[1759289463125,0.20288422,114490.0,114480.0,2.6814341]
[1759289463952,0.20288422,114490.0,114480.0,2.8561371]
[1759289464774,0.20288422,114490.0,114480.0,2.6814341]
[1759289467279,0.20288422,114490.0,114480.0,2.63445]
[1759289467452,0.20288422,114490.0,114480.0,2.6814341]
[1759289468777,0.20288422,114490.0,114480.0,2.52499633]
[1759289468947,0.20288422,114490.0,114480.0,2.77635633]
[1759289470326,0.20288422,114490.0,114480.0,1.70779633]
[1759289470556,0.20288422,114490.0,114480.0,2.77639633]
[1759289471007,0.56909613,114490.0,114480.0,1.70779633]
[1759289471216,0.56909613,114490.0,114480.0,1.32724223]
[1759289474771,0.56909613,114490.0,114480.0,1.23640223]
[1759289474987,0.56909613,114490.0,114480.0,1.32720223]
[1759289477861,0.56909613,114490.0,114480.0,1.23204]
[1759289478426,0.6584816,114490.0,114480.0,0.77792]
[1759289478602,0.6584816,114490.0,114480.0,1.23192]
[1759289479914,0.6584816,114490.0,114480.0,1.23188]
[1759289480237,0.6584816,114490.0,114480.0,0.52664]
[1759289480444,0.6584816,114490.0,114480.0,1.23192]
[1759289482081,0.6584816,114490.0,114480.0,0.16344]
[1759289482294,0.6584816,114490.0,114480.0,1.23188]
[1759289484496,0.6584816,114490.0,114480.0,1.26149892]
[1759289485278,0.6552716,114490.0,114480.0,2.66370892]
[1759289485493,0.6581016,114490.0,114480.0,2.66370892]
[1759289486972,0.6581016,114490.0,114480.0,1.26149892]
[1759289487158,0.6581016,114490.0,114480.0,0.19305892]
[1759289487375,0.6581016,114490.0,114480.0,1.26153892]
[1759289488083,0.6581016,114490.0,114480.0,1.23192]
[1759289491896,0.3131416,114490.0,114480.0,2.63413]
[1759289492347,0.6531416,114490.0,114480.0,2.63413]
[1759289492559,0.6551716,114490.0,114480.0,2.6811141]
[1759289492768,0.6531416,114490.0,114480.0,2.8558171]
[1759289492947,0.56375613,114490.0,114480.0,2.8864263]
[1759289493149,0.56375613,114490.0,114480.0,2.7117233]
[1759289494065,0.56375613,114490.0,114480.0,2.8864263]
[1759289494774,0.56375613,114490.0,114480.0,2.7117233]
[1759289494981,0.56375613,114490.0,114480.0,2.8864263]
[1759289495326,0.56375613,114490.0,114480.0,2.7117233]
[1759289495740,0.56375613,114490.0,114480.0,1.5010992]
[1759289496559,0.56375613,114490.0,114480.0,1.3263962]
[1759289497046,0.56375613,114490.0,114480.0,1.5774362]
[1759289497213,0.56375613,114490.0,114480.0,2.4673562]
[1759289497914,0.56578613,114490.0,114480.0,2.4673562]
[1759289498239,0.56578613,114490.0,114480.0,2.291159]
[1759289498240,0.56871613,114490.0,114480.0,2.291159]
[1759289498558,0.56871613,114490.0,114480.0,1.222839]
[1759289498702,0.56871613,114490.0,114480.0,2.291079]
[1759289499135,0.56871613,114490.0,114480.0,2.291039]
[1759289499309,0.56871613,114490.0,114480.0,1.23164]
[1759289499585,0.6581016,114490.0,114480.0,1.23164]
[1759289500171,0.6581016,114490.0,114480.0,1.2625213]
[1759289501493,0.6581016,114490.0,114480.0,0.1943213]
[1759289502003,0.6581016,114490.0,114480.0,1.2624813]
[1759289502446,0.6581016,114490.0,114480.0,0.98072]
[1759289502620,0.6581016,114490.0,114480.0,1.23156]
[1759289503165,0.56375613,114490.0,114480.0,1.23156]
[1759289503813,0.56578613,114490.0,114480.0,1.23156]
[1759289504654,0.56578613,114490.0,114480.0,1.25724487]
[1759289505254,0.56871613,114490.0,114480.0,1.25724487]
[1759289507128,0.514703,114480.0,114470.0,0.17140566]
[1759289507381,0.514703,114480.0,114470.0,2.21483527]
[1759289507686,0.538723,114480.0,114470.0,2.21483527]
[1759289507902,0.5649353,114480.0,114470.0,2.21483527]
[1759289508304,0.5649353,114480.0,114470.0,2.291039]
[1759289508517,0.5649353,114480.0,114470.0,2.46575726]
[1759289509708,0.5649353,114480.0,114470.0,1.222839]
[1759289509913,0.5649353,114480.0,114470.0,2.290959]
[1759289511014,0.5700153,114480.0,114470.0,1.222839]
[1759289511221,0.5700153,114480.0,114470.0,1.23148]
[1759289514396,0.5649353,114480.0,114470.0,2.290879]
[1759289514843,0.5649353,114480.0,114470.0,2.46559726]
[1759289515766,0.5649353,114480.0,114470.0,2.290879]
[1759289515995,0.5649353,114480.0,114470.0,2.46559726]
[1759289516773,0.5649353,114480.0,114470.0,2.290879]
[1759289517000,0.5649353,114480.0,114470.0,2.46559726]
[1759289517201,0.5649353,114480.0,114470.0,2.51258136]
[1759289519011,0.5669553,114480.0,114470.0,2.51258136]
[1759289519215,0.5700153,114480.0,114470.0,1.2698231]
[1759289519418,0.5700153,114480.0,114470.0,2.3377031]
[1759289520760,0.5700153,114480.0,114470.0,2.3376631]
[1759289521483,0.5700153,114480.0,114470.0,1.2698231]
[1759289521678,0.5700153,114480.0,114470.0,2.2468231]
[1759289521910,0.5700153,114480.0,114470.0,2.3376231]
[1759289522390,0.5700153,114480.0,114470.0,1.2698231]
[1759289523007,0.5700153,114480.0,114470.0,2.3375831]
[1759289523214,0.5700153,114480.0,114470.0,1.2781841]
[1759289523412,0.5700153,114480.0,114470.0,1.1874241]
[1759289523630,0.17471826,114470.0,114460.0,0.04702076]
[1759289523848,0.17471826,114470.0,114460.0,1.37195329]
[1759289524057,0.20041826,114470.0,114460.0,1.37195329]